bitfinex/quotes_BTCUSD_20240927
["timestamp","ask_amount","ask_price","bid_price","bid_amount"]
[1727464393570,0.5800175,65907.0,65906.0,0.000158]
[1727464393778,0.69469588,65907.0,65906.0,0.000158]
[1727464394000,0.69369588,65907.0,65906.0,0.000158]
[1727464394255,0.69373182,65907.0,65906.0,0.000158]
[1727464394489,0.5800175,65907.0,65906.0,0.000158]
[1727464394698,0.5880175,65907.0,65906.0,1e-06]
[1727464394912,0.5760175,65907.0,65906.0,1e-06]
[1727464395141,0.6000175,65907.0,65906.0,1e-06]
[1727464395795,0.5990175,65907.0,65906.0,1e-06]
[1727464396220,0.6130175,65907.0,65906.0,1e-06]
[1727464396420,0.5990175,65907.0,65906.0,1e-06]
[1727464396628,0.5850175,65907.0,65906.0,1e-06]
[1727464396854,0.6130175,65907.0,65906.0,1e-06]
[1727464397688,0.61350875,65907.0,65906.0,1e-06]
[1727464397892,0.59950875,65907.0,65906.0,1e-06]
[1727464398123,0.62330009,65907.0,65906.0,1e-06]
[1727464398362,0.75969277,65907.0,65906.0,1e-06]
[1727464398574,0.62330009,65907.0,65906.0,1e-06]
[1727464399000,0.75967119,65907.0,65906.0,1e-06]
[1727464399210,0.75967026,65907.0,65906.0,1e-06]
[1727464399428,0.74987892,65907.0,65906.0,1e-06]
[1727464399843,0.61350875,65907.0,65906.0,1e-06]
[1727464401159,0.74984737,65907.0,65906.0,1e-06]
[1727464401366,0.74784737,65907.0,65906.0,1e-06]
[1727464401600,0.61150875,65907.0,65906.0,1e-06]
[1727464402950,0.72510087,65907.0,65906.0,1e-06]
[1727464403397,0.61150875,65907.0,65906.0,1e-06]
[1727464403608,0.72510087,65907.0,65906.0,1e-06]
[1727464404039,0.72510298,65907.0,65906.0,1e-06]
[1727464405088,0.72010298,65907.0,65906.0,1e-06]
[1727464405328,0.43059854,65907.0,65906.0,1e-06]
[1727464405542,0.28004725,65907.0,65906.0,1e-06]
[1727464406410,0.26604725,65907.0,65906.0,1e-06]
[1727464406881,0.27904725,65907.0,65906.0,1e-06]
[1727464409791,0.43040612,65907.0,65906.0,1e-06]
[1727464410670,0.63040612,65907.0,65906.0,1e-06]
[1727464411319,0.61740612,65907.0,65906.0,1e-06]
[1727464411752,0.63140612,65907.0,65906.0,1e-06]
[1727464412393,0.61740612,65907.0,65906.0,1e-06]
[1727464412810,0.63140612,65907.0,65906.0,1e-06]
[1727464413014,0.60340612,65907.0,65906.0,1e-06]
[1727464413433,0.63140612,65907.0,65906.0,1e-06]
[1727464413653,0.61740612,65907.0,65906.0,1e-06]
[1727464414268,0.63140612,65907.0,65906.0,1e-06]
[1727464415763,0.61740612,65907.0,65906.0,1e-06]
[1727464415997,0.63140612,65907.0,65906.0,1e-06]
[1727464416181,0.61740612,65907.0,65906.0,1e-06]
[1727464416386,0.64119548,65907.0,65906.0,1e-06]
[1727464416627,0.65519548,65907.0,65906.0,1e-06]
[1727464419162,0.65519548,65907.0,65906.0,0.015401]
[1727464425647,0.65019548,65907.0,65906.0,0.015401]
[1727464426082,0.47819548,65907.0,65906.0,0.015401]
[1727464426300,0.37230651,65907.0,65906.0,0.015401]
[1727464426524,0.28004725,65907.0,65906.0,0.015401]
[1727464426743,0.18004725,65907.0,65906.0,0.095901]
[1727464427185,0.18004725,65907.0,65906.0,0.11116621]
[1727464427390,0.16604725,65907.0,65906.0,0.11116621]
[1727464427660,0.18004725,65907.0,65906.0,0.11116621]
[1727464428766,0.16604725,65907.0,65906.0,0.11116621]
[1727464429647,0.15204725,65907.0,65906.0,0.11116621]
[1727464429856,0.15404725,65907.0,65906.0,0.11116621]
[1727464430493,0.15604725,65907.0,65906.0,0.11116621]
[1727464430863,0.15404725,65907.0,65906.0,0.11116621]
[1727464431088,0.1758333,65907.0,65906.0,0.11116621]
[1727464431310,0.1768333,65907.0,65906.0,0.11116621]
[1727464431538,0.15304725,65907.0,65906.0,0.11116621]
[1727464431989,0.15304725,65907.0,65906.0,0.28558474]
[1727464432208,0.15304725,65907.0,65906.0,0.37948474]
[1727464432442,0.15404725,65907.0,65906.0,0.37948474]
[1727464432639,0.002828,65907.0,65906.0,0.53121574]
[1727464433114,0.000828,65907.0,65906.0,0.53121574]
[1727464433497,0.001828,65907.0,65906.0,0.53121574]
[1727464434552,0.002828,65907.0,65906.0,0.53121574]
[1727464435577,0.001828,65907.0,65906.0,0.53121574]
[1727464435781,0.000828,65907.0,65906.0,0.53121574]
[1727464436375,0.001828,65907.0,65906.0,0.53121574]
[1727464436822,0.002828,65907.0,65906.0,0.53121574]
[1727464437259,0.001828,65907.0,65906.0,0.53121574]
[1727464437490,0.002828,65907.0,65906.0,0.53121574]
[1727464437747,0.001828,65907.0,65906.0,0.53121574]
[1727464437973,0.000828,65907.0,65906.0,0.53121574]
[1727464438634,0.000828,65907.0,65906.0,0.5311402]
[1727464439296,0.002828,65907.0,65906.0,0.5311402]
[1727464439514,0.001828,65907.0,65906.0,0.5311402]
[1727464440685,0.002828,65907.0,65906.0,0.5311402]
[1727464442792,0.002828,65907.0,65906.0,0.64644612]
[1727464442976,0.000828,65910.0,65909.0,0.153724]
[1727464443198,0.000828,65910.0,65909.0,0.23825775]
[1727464443420,0.000828,65910.0,65909.0,0.25326349]
[1727464444099,0.000828,65910.0,65909.0,0.34796349]
[1727464444337,0.000828,65910.0,65909.0,0.46285563]
[1727464445477,0.001828,65910.0,65909.0,0.46785563]
[1727464445946,0.002828,65910.0,65909.0,0.46785563]
[1727464446871,0.22593498,65919.0,65918.0,0.151703]
[1727464447099,0.22593498,65919.0,65918.0,0.32612153]
[1727464447330,0.151692,65923.0,65918.0,0.1894221]
[1727464447542,0.151693,65923.0,65920.0,0.151699]
[1727464447823,0.151693,65923.0,65919.0,0.00303366]
[1727464448050,0.152523,65922.0,65921.0,0.01500285]
[1727464448289,0.151696,65921.0,65920.0,0.01500309]
[1727464448546,0.303437,65912.0,65909.0,0.0865]
[1727464448767,0.151696,65921.0,65920.0,0.01500309]
[1727464448999,0.077729,65922.0,65906.0,0.01698146]
[1727464449000,0.151724,65909.0,65906.0,0.01698146]
[1727464449236,0.151728,65908.0,65906.0,0.01698146]
[1727464449453,0.151724,65910.0,65907.0,0.01496549]
[1727464449673,0.22645098,65917.0,65907.0,0.01496549]
[1727464449902,0.151722,65910.0,65909.0,0.007]
[1727464450134,0.303439,65911.0,65909.0,0.000256]
[1727464450389,0.151722,65910.0,65909.0,0.01522101]
[1727464452192,0.152722,65910.0,65909.0,0.01522101]
[1727464452647,0.151722,65910.0,65909.0,0.01522101]
[1727464453807,0.151722,65910.0,65909.0,0.01822101]
[1727464454036,0.151722,65910.0,65909.0,0.01522101]
[1727464454507,0.151722,65910.0,65909.0,0.01922101]
[1727464455186,0.151722,65910.0,65909.0,0.01522101]
[1727464455652,0.152722,65910.0,65909.0,0.01522101]
[1727464457024,0.152722,65910.0,65909.0,0.01922101]
[1727464457243,0.001,65910.0,65909.0,0.01522101]
[1727464457459,0.152722,65910.0,65909.0,0.01522101]
[1727464457678,0.001,65910.0,65909.0,0.17094501]
[1727464457897,0.001,65910.0,65909.0,0.01922101]
[1727464458144,0.001,65910.0,65909.0,0.17094501]
[1727464458403,0.001828,65910.0,65909.0,0.01922101]
[1727464459082,0.15255,65910.0,65909.0,0.01922101]
[1727464459296,0.15355,65910.0,65909.0,0.01922101]
[1727464459519,0.15355,65910.0,65909.0,0.01522101]
[1727464459974,0.15455,65910.0,65909.0,0.02122101]
[1727464460508,0.002828,65910.0,65909.0,0.02122101]
[1727464460722,0.15455,65910.0,65909.0,0.02122101]
[1727464461145,0.002828,65910.0,65909.0,0.02122101]
[1727464461850,0.002828,65910.0,65909.0,0.17294501]
[1727464462085,0.002828,65910.0,65909.0,0.02122101]
[1727464462315,0.002828,65910.0,65909.0,0.17294501]
[1727464462867,0.002828,65910.0,65909.0,0.17597917]
[1727464463494,0.002828,65910.0,65909.0,0.17797917]
[1727464463907,0.002828,65910.0,65909.0,0.17597917]
[1727464464112,0.002828,65910.0,65909.0,0.17294501]
[1727464467388,0.002828,65910.0,65909.0,0.02122101]
[1727464471103,0.002828,65910.0,65909.0,0.02287701]
[1727464472860,0.33165,65910.0,65909.0,0.02287701]
[1727464473345,0.33165,65910.0,65909.0,0.007912]
[1727464473798,0.33065,65910.0,65909.0,0.001912]
[1727464473989,0.33265,65910.0,65909.0,0.001912]
[1727464474204,0.33165,65910.0,65909.0,0.001912]
[1727464474420,0.32965,65910.0,65909.0,0.001912]
[1727464474630,0.45923281,65910.0,65909.0,0.002912]
[1727464474891,0.33465,65910.0,65909.0,0.002912]
[1727464475828,0.33565,65910.0,65909.0,0.002912]
[1727464476050,0.47743656,65910.0,65909.0,0.001912]
[1727464476244,0.54961498,65910.0,65909.0,0.001912]
[1727464476457,0.54461498,65910.0,65909.0,0.001912]
[1727464476676,0.70500304,65910.0,65909.0,0.001912]
[1727464476908,0.73272918,65910.0,65909.0,0.001912]
[1727464477158,0.70394262,65910.0,65909.0,0.001912]
[1727464477376,0.71695357,65910.0,65909.0,0.001912]
[1727464477607,0.69995357,65910.0,65909.0,0.001912]
[1727464478274,0.67720531,65910.0,65909.0,0.001912]
[1727464479002,0.70820531,65910.0,65909.0,0.001912]
[1727464479233,0.70820531,65910.0,65906.0,0.01698146]
[1727464479234,0.62704653,65907.0,65906.0,0.01698146]
[1727464480126,0.65083564,65907.0,65906.0,0.01698146]
[1727464480778,0.67883564,65907.0,65906.0,0.01698146]
[1727464482177,0.67883564,65907.0,65906.0,0.01658131]
[1727464482178,0.66483564,65907.0,65906.0,0.01658131]
[1727464482402,0.67883564,65907.0,65906.0,0.01658131]
[1727464482617,0.74437995,65907.0,65906.0,0.01658131]
[1727464482836,0.75837995,65907.0,65906.0,0.01658131]
[1727464483028,0.74437995,65907.0,65906.0,0.01658131]
[1727464483531,0.76239052,65907.0,65906.0,0.01658131]
[1727464483712,0.74839052,65907.0,65906.0,0.01658131]
[1727464484109,0.76239052,65907.0,65906.0,0.01658131]
[1727464484335,0.74839052,65907.0,65906.0,0.01658131]
[1727464485361,0.73439052,65907.0,65906.0,0.01658131]
[1727464485856,0.74839052,65907.0,65906.0,0.01658131]
[1727464486371,0.76239052,65907.0,65906.0,0.01658131]
[1727464486600,0.74839052,65907.0,65906.0,0.01658131]
[1727464486828,0.76239052,65907.0,65906.0,0.01658131]
[1727464487059,0.74839052,65907.0,65906.0,0.01658131]
[1727464487522,0.76239052,65907.0,65906.0,0.01658131]
[1727464492405,0.50342768,65907.0,65906.0,0.01658131]
[1727464492642,0.48042768,65907.0,65906.0,0.01658131]
[1727464492880,0.45663857,65907.0,65906.0,0.01658131]
[1727464495145,0.28373857,65907.0,65906.0,0.01658131]
[1727464495370,0.279728,65907.0,65906.0,0.01658131]
[1727464496459,0.265728,65907.0,65906.0,0.01658131]
[1727464496679,0.261728,65907.0,65906.0,0.01658131]
[1727464497120,0.256728,65907.0,65906.0,0.01658131]
[1727464497332,0.251728,65907.0,65906.0,0.01658131]
[1727464497562,0.256728,65907.0,65906.0,0.01658131]
[1727464498007,0.254728,65907.0,65906.0,0.01658131]
[1727464498964,0.251728,65907.0,65906.0,0.01658131]
[1727464499181,0.261728,65907.0,65906.0,0.01658131]
[1727464500528,0.3770572,65907.0,65906.0,0.01658131]
[1727464500747,0.3790572,65907.0,65906.0,0.01658131]
[1727464501442,0.3810572,65907.0,65906.0,0.01658131]
[1727464501673,0.155728,65907.0,65906.0,0.01658131]
[1727464501916,0.004,65907.0,65906.0,0.01658131]
[1727464502152,0.004,65907.0,65906.0,0.10806639]
[1727464502388,0.002,65907.0,65906.0,0.10806639]
[1727464502634,0.005,65907.0,65906.0,0.35873177]
[1727464502877,0.005,65907.0,65906.0,0.35569739]
[1727464502878,0.002,65907.0,65906.0,0.35569739]
[1727464503134,0.004,65907.0,65906.0,0.35569739]
[1727464503619,0.002,65907.0,65906.0,0.35569739]
[1727464503865,0.001,65907.0,65906.0,0.35569739]
[1727464504376,0.005,65907.0,65906.0,0.35569739]
[1727464504824,0.001,65907.0,65906.0,0.35769739]
[1727464505079,0.001,65907.0,65906.0,0.50195218]
[1727464505350,0.001,65907.0,65906.0,0.35769739]
[1727464505566,0.001828,65907.0,65906.0,0.35769739]
[1727464506023,0.000828,65907.0,65906.0,0.35769739]
[1727464506250,0.000828,65910.0,65909.0,0.305224]
[1727464506477,0.000828,65910.0,65909.0,0.62545489]
[1727464506702,0.000828,65910.0,65909.0,0.63750117]
[1727464507697,0.001828,65910.0,65909.0,0.64250117]
[1727464508199,0.001828,65910.0,65909.0,0.75250117]
[1727464508926,0.000828,65910.0,65909.0,0.75250117]
[1727464509172,0.001828,65910.0,65909.0,0.76150117]
[1727464509393,0.002828,65910.0,65909.0,0.76350117]
[1727464510155,0.002828,65910.0,65909.0,0.25410405]
[1727464510611,0.002828,65910.0,65909.0,0.42852258]
[1727464510828,0.001828,65910.0,65909.0,0.19849858]
[1727464511054,0.15355,65910.0,65909.0,0.02408005]
[1727464511279,0.002828,65910.0,65909.0,0.02708005]
[1727464511793,0.002828,65910.0,65909.0,0.17880405]
[1727464512014,0.002828,65910.0,65909.0,0.17283803]
[1727464512015,0.001828,65910.0,65909.0,0.17283803]
[1727464512231,0.001828,65910.0,65909.0,0.26873803]
[1727464512459,0.002828,65910.0,65909.0,0.26670405]
[1727464512675,0.002828,65910.0,65909.0,0.26470405]
[1727464512904,0.001828,65910.0,65909.0,0.26370405]
[1727464513120,0.002828,65910.0,65909.0,0.26470405]
[1727464513568,0.001828,65910.0,65909.0,0.26170405]
[1727464514051,0.002828,65910.0,65909.0,0.26370405]
[1727464514472,0.001828,65910.0,65909.0,0.26170405]
[1727464514694,0.002828,65910.0,65909.0,0.26370405]
[1727464515401,0.002828,65910.0,65909.0,0.26570405]
[1727464515590,0.002828,65910.0,65909.0,0.26370405]
[1727464515849,0.002828,65910.0,65909.0,0.16980405]
[1727464516104,0.002828,65910.0,65909.0,0.01808005]
[1727464516566,0.032828,65910.0,65909.0,0.01808005]
[1727464517716,0.032828,65910.0,65909.0,0.16980405]
[1727464518214,0.032828,65910.0,65909.0,0.26657664]
[1727464518487,0.032828,65910.0,65909.0,0.1748382]
[1727464519506,0.032828,65910.0,65909.0,0.2550382]
[1727464520252,0.03264538,65910.0,65909.0,0.2550382]
[1727464520949,0.03064538,65910.0,65909.0,0.3570382]
[1727464521197,0.03164538,65910.0,65909.0,0.35600405]
[1727464521443,0.22645098,65926.0,65918.0,0.153703]
[1727464521687,0.22645098,65926.0,65918.0,0.42062153]
[1727464521913,0.22645098,65926.0,65918.0,0.4355271]
[1727464522141,0.22645098,65926.0,65918.0,0.5161271]
[1727464522851,0.001828,65919.0,65918.0,0.5251271]
[1727464523326,0.001828,65919.0,65918.0,0.60051962]
[1727464523548,0.001828,65919.0,65918.0,0.5231271]
[1727464524714,0.002828,65919.0,65918.0,0.5371271]
[1727464525116,0.002828,65919.0,65918.0,0.5391271]
[1727464525595,0.002828,65919.0,65918.0,0.5371271]
[1727464527433,0.002828,65919.0,65918.0,0.5391271]
[1727464528777,0.002828,65919.0,65918.0,0.5371271]
[1727464529238,0.002828,65919.0,65918.0,0.68356491]
[1727464529509,0.002828,65919.0,65918.0,0.5371271]
[1727464529974,0.002828,65919.0,65918.0,0.5391271]
[1727464530873,0.002828,65919.0,65918.0,0.5371271]
[1727464532086,0.002828,65919.0,65918.0,0.5391271]
[1727464533206,0.002828,65919.0,65918.0,0.68356491]
[1727464533461,0.002828,65919.0,65918.0,0.59106491]
[1727464533712,0.002828,65919.0,65918.0,0.3640271]
[1727464534587,0.002828,65919.0,65918.0,0.3660271]
[1727464535031,0.001828,65919.0,65918.0,0.3520271]
[1727464535245,0.002828,65919.0,65918.0,0.3630271]
[1727464535453,0.001828,65919.0,65918.0,0.3540271]
[1727464535675,0.002828,65919.0,65918.0,0.3620271]
[1727464535892,0.001828,65919.0,65918.0,0.3540271]
[1727464536388,0.152483,65939.0,65918.0,0.3540271]
[1727464536389,0.000828,65939.0,65938.0,0.151657]
[1727464536615,0.151664,65935.0,65931.0,0.32608953]
[1727464536834,0.303321,65937.0,65931.0,0.17441853]
[1727464537057,0.303321,65937.0,65932.0,0.15167]
[1727464537317,0.151665,65935.0,65931.0,0.17441853]
[1727464537545,0.0788,65937.0,65932.0,0.303342]
[1727464537766,0.151663,65936.0,65932.0,0.16643204]
[1727464537984,0.0788,65937.0,65932.0,0.01476304]
[1727464538207,0.23046,65937.0,65933.0,0.151668]
[1727464538420,0.23046,65937.0,65933.0,0.1664308]
[1727464538653,0.0788,65937.0,65933.0,0.0147628]
[1727464538876,0.251258,65938.0,65935.0,0.17441853]
[1727464539093,0.15166,65937.0,65935.0,0.17441853]
[1727464539306,0.15166,65937.0,65936.0,0.01476208]
[1727464539529,0.0996,65938.0,65936.0,0.01476208]
[1727464539762,0.000828,65939.0,65938.0,0.151657]
[1727464540285,0.000828,65939.0,65938.0,0.16945152]
[1727464542093,0.000828,65939.0,65938.0,0.16641859]
[1727464542767,0.001828,65939.0,65938.0,0.16641859]
[1727464542986,0.000828,65939.0,65938.0,0.16641859]
[1727464543428,0.001828,65939.0,65938.0,0.17745124]
[1727464543879,0.001828,65939.0,65938.0,0.28133156]
[1727464545045,0.001828,65939.0,65938.0,0.35886977]
[1727464545265,0.001828,65939.0,65938.0,0.35583712]
[1727464547991,0.001828,65939.0,65938.0,0.35783712]
[1727464549165,0.001828,65939.0,65938.0,0.35583712]
[1727464551481,0.001828,65939.0,65938.0,0.35783712]
[1727464551710,0.001828,65939.0,65938.0,0.47507324]
[1727464551947,0.22645098,65954.0,65938.0,0.47507324]
[1727464551948,0.22645098,65954.0,65953.0,0.151623]
[1727464552199,0.22645098,65954.0,65953.0,0.32604153]
[1727464552691,0.0773,65960.0,65957.0,0.151613]
[1727464552940,0.0983,65963.0,65957.0,0.32906336]
[1727464553167,0.0983,65963.0,65957.0,0.34059028]
[1727464553869,0.249901,65963.0,65957.0,0.34059028]
[1727464554097,0.151604,65962.0,65957.0,0.34059028]
[1727464554337,0.151605,65961.0,65957.0,0.34059028]
[1727464554572,0.249901,65963.0,65957.0,0.34759028]
[1727464554801,0.151603,65962.0,65957.0,0.20297728]
[1727464555273,0.152439,65958.0,65957.0,0.02855875]
[1727464555804,0.000828,65958.0,65957.0,0.20297728]
[1727464556697,0.000828,65958.0,65957.0,0.34003153]
[1727464556962,0.000828,65958.0,65957.0,0.20294925]
[1727464557180,0.000828,65958.0,65957.0,0.35456225]
[1727464558584,0.000828,65958.0,65957.0,0.46807051]
[1727464560435,0.000828,65958.0,65957.0,0.43236225]
[1727464562499,0.000828,65964.0,65957.0,0.59265019]
[1727464562736,0.000828,65964.0,65963.0,0.32601853]
[1727464563183,0.000828,65964.0,65963.0,0.50267059]
[1727464563537,0.22645098,65972.0,65971.0,0.32599953]
[1727464563776,0.000828,65973.0,65972.0,0.153579]
[1727464564013,0.000828,65976.0,65975.0,0.32599053]
[1727464564285,0.000828,65976.0,65975.0,0.32799053]
[1727464564495,0.000828,65976.0,65975.0,0.34023247]
[1727464565665,0.000828,65976.0,65975.0,0.34923247]
[1727464565873,0.000828,65976.0,65975.0,0.46646859]
[1727464567104,0.000828,65979.0,65975.0,0.46646859]
[1727464567105,0.000828,65979.0,65978.0,0.151565]
[1727464567343,0.000828,65979.0,65978.0,0.15459564]
[1727464567570,0.000828,65979.0,65978.0,0.16997036]
[1727464567810,0.000828,65979.0,65978.0,0.28596605]
[1727464568040,0.000828,65979.0,65978.0,0.28796605]
[1727464568293,0.000828,65979.0,65978.0,0.28596605]
[1727464568756,0.000828,65979.0,65978.0,0.29096605]
[1727464568993,0.000828,65979.0,65978.0,0.29296605]
[1727464569253,0.000828,65979.0,65978.0,0.29096605]
[1727464569490,0.000828,65979.0,65978.0,0.17497036]
[1727464570201,0.000828,65979.0,65978.0,0.17193972]
[1727464571616,0.000828,65979.0,65978.0,0.17793972]
[1727464571869,0.246691,65979.0,65978.0,0.02637472]
[1727464573299,0.246691,65979.0,65978.0,0.02636203]
[1727464573777,0.246691,65979.0,65978.0,0.011]
[1727464574244,0.246691,65979.0,65978.0,0.02636203]
[1727464574720,0.422009,65979.0,65978.0,0.02636203]
[1727464574997,0.328891,65979.0,65978.0,0.02636203]
[1727464575233,0.328891,65979.0,65978.0,0.011]
[1727464575465,0.151572,65975.0,65974.0,0.17441853]
[1727464575697,0.20108698,65979.0,65974.0,0.17441853]
[1727464575921,0.20208698,65979.0,65974.0,0.17441853]
[1727464576152,0.151572,65975.0,65974.0,0.17441853]
[1727464577863,0.151579,65972.0,65969.0,0.17441853]
[1727464578351,0.303141,65976.0,65969.0,0.17441853]
[1727464578600,0.151572,65975.0,65974.0,0.004]
[1727464578848,0.303141,65976.0,65969.0,0.32600253]
[1727464579072,0.151579,65973.0,65969.0,0.17441853]
[1727464579302,0.303136,65977.0,65969.0,0.18141853]
[1727464579526,0.303145,65975.0,65973.0,0.17441853]
[1727464579782,0.151576,65974.0,65973.0,0.17441853]
[1727464580270,0.303152,65974.0,65969.0,0.17941853]
[1727464580525,0.151584,65970.0,65969.0,0.005]
[1727464580756,0.151593,65966.0,65965.0,0.0491515]
[1727464580994,0.151593,65966.0,65962.0,0.151602]
[1727464581239,0.151598,65964.0,65960.0,0.32602353]
[1727464581487,0.1731,65963.0,65957.0,0.153267]
[1727464581715,0.151603,65962.0,65958.0,0.15161]
[1727464581943,0.151605,65961.0,65957.0,0.153266]
[1727464582186,0.151606,65961.0,65957.0,0.153267]
[1727464582690,0.151609,65959.0,65958.0,0.0153837]
[1727464582920,0.151609,65959.0,65958.0,0.009]
[1727464583155,0.303207,65962.0,65958.0,0.009]
[1727464583383,0.30321,65961.0,65958.0,0.0243837]
[1727464583626,0.151609,65959.0,65958.0,0.0243837]
[1727464584095,0.17456891,65959.0,65958.0,0.0243837]
[1727464584323,0.233709,65959.0,65958.0,0.0153837]
[1727464584563,0.151611,65958.0,65957.0,0.001654]
[1727464584799,0.151611,65958.0,65957.0,0.011654]
[1727464585039,0.151611,65958.0,65957.0,0.021654]
[1727464585278,0.245265,65958.0,65957.0,0.011654]
[1727464585506,0.151611,65958.0,65957.0,0.011654]
[1727464585960,0.385319,65959.0,65958.0,0.151611]
[1727464585961,0.0821,65959.0,65958.0,0.151611]
[1727464586198,0.0821,65959.0,65958.0,0.001]
[1727464586456,0.0821,65959.0,65958.0,0.01658809]
[1727464587634,0.0964,65963.0,65961.0,0.151603]
[1727464587849,0.0769,65964.0,65962.0,0.17441853]
[1727464588302,0.0769,65964.0,65962.0,0.34159662]
[1727464588528,0.0769,65964.0,65962.0,0.34159462]
[1727464588752,0.0769,65964.0,65962.0,0.18999462]
[1727464589025,0.0769,65964.0,65963.0,0.1516]
[1727464589258,0.0924,65967.0,65962.0,0.49319862]
[1727464589487,0.0924,65967.0,65966.0,0.32601153]
[1727464589709,0.0924,65967.0,65963.0,0.01557584]
[1727464589946,0.0924,65967.0,65958.0,0.001654]
[1727464589947,0.0924,65967.0,65965.0,0.17441853]
[1727464590181,0.243991,65967.0,65965.0,0.17441853]
[1727464590400,0.243991,65967.0,65966.0,0.01553612]
[1727464590401,0.0924,65967.0,65966.0,0.01553612]
[1727464590630,0.24399,65967.0,65966.0,0.01553612]
[1727464591606,0.0924,65967.0,65966.0,0.01553612]
[1727464591844,0.0924,65967.0,65966.0,0.01653612]
[1727464592071,0.0924,65967.0,65966.0,0.01853612]
[1727464592753,0.0769,65970.0,65966.0,0.01853612]
[1727464592996,0.232173,65975.0,65971.0,0.151579]
[1727464593232,0.22645098,65973.0,65969.0,0.17441853]
[1727464593475,0.0806,65975.0,65972.0,0.01552736]
[1727464593700,0.151574,65974.0,65969.0,0.32903494]
[1727464593948,0.151577,65973.0,65969.0,0.32600353]
[1727464594449,0.151579,65972.0,65969.0,0.17441853]
[1727464594687,0.151589,65968.0,65965.0,0.17441853]
[1727464594910,0.15159,65967.0,65966.0,0.005]
[1727464595170,0.303167,65971.0,65966.0,0.005]
[1727464595393,0.151594,65966.0,65961.0,0.17441853]
[1727464595613,0.151594,65966.0,65962.0,0.151601]
[1727464596093,0.3741258,65971.0,65966.0,0.153593]
[1727464596330,0.0709618,65971.0,65966.0,0.002]
[1727464596552,0.151588,65969.0,65964.0,0.151597]
[1727464597034,0.2225438,65971.0,65961.0,0.17441853]
[1727464597284,0.151587,65969.0,65963.0,0.303197]
[1727464597527,0.151592,65967.0,65963.0,0.1516]
[1727464597731,0.08327498,65970.0,65962.0,0.3187094]
[1727464597732,0.38644598,65970.0,65964.0,0.01550492]
[1727464597981,0.151592,65967.0,65964.0,0.01550492]
[1727464598209,0.151592,65967.0,65964.0,0.002]
[1727464598436,0.151592,65967.0,65965.0,0.01550468]
[1727464599115,0.151592,65967.0,65964.0,0.001]
[1727464599366,0.151592,65967.0,65966.0,0.01550444]
[1727464599583,0.08327498,65970.0,65965.0,0.01550468]
[1727464599818,0.08327498,65970.0,65966.0,0.01550444]
[1727464600274,0.08327498,65970.0,65967.0,0.01543528]
[1727464600700,0.08327498,65970.0,65965.0,0.005]
[1727464600929,0.22645098,65974.0,65968.0,0.01543504]
[1727464601161,0.22645098,65974.0,65968.0,0.151586]
[1727464601385,0.22645098,65974.0,65966.0,0.17441853]
[1727464601386,0.22645098,65974.0,65969.0,0.0154348]
[1727464601610,0.22645098,65974.0,65970.0,0.151582]
[1727464601906,0.22645098,65974.0,65966.0,0.17641853]
[1727464601907,0.22645098,65974.0,65968.0,0.151587]
[1727464602133,1.5806,65975.0,65971.0,0.01544364]
[1727464602355,1.5806,65975.0,65970.0,0.151583]
[1727464602577,1.5806,65975.0,65972.0,0.0154434]
[1727464602812,1.5806,65975.0,65974.0,0.17441853]
[1727464603060,1.5,65975.0,65974.0,0.34497875]
[1727464603522,1.5,65975.0,65974.0,0.36042167]
[1727464603744,1.5,65975.0,65974.0,0.34143545]
[1727464604210,1.5,65975.0,65974.0,0.42313545]
[1727464604889,1.5,65975.0,65974.0,0.42513545]
[1727464605115,1.5,65975.0,65974.0,0.42713545]
[1727464605827,1.5,65975.0,65974.0,0.43313545]
[1727464606502,1.5,65975.0,65974.0,0.63331464]
[1727464607265,1.5,65975.0,65974.0,0.58833744]
[1727464607485,1.5,65975.0,65974.0,0.50663744]
[1727464607940,1.5,65975.0,65974.0,0.50863744]
[1727464608842,1.5,65975.0,65974.0,0.50663744]
[1727464609290,1.5,65975.0,65974.0,0.55360159]
[1727464610164,1.5,65975.0,65974.0,0.55160159]
[1727464611029,1.5,65975.0,65974.0,0.55360159]
[1727464611260,1.5,65975.0,65974.0,0.55160159]
[1727464611478,1.5,65975.0,65974.0,0.50663744]
[1727464612631,1.41871835,65975.0,65974.0,0.50863744]
[1727464612857,0.8833271,65975.0,65974.0,0.50863744]
[1727464613074,0.8833271,65975.0,65974.0,0.73760159]
[1727464613520,0.8833271,65975.0,65974.0,0.69263744]
[1727464613733,0.8833271,65975.0,65974.0,0.68663744]
[1727464613949,0.8833271,65975.0,65974.0,0.68263744]
[1727464614169,0.8833271,65975.0,65974.0,0.69663744]
[1727464614397,0.8833271,65975.0,65974.0,0.75558395]
[1727464614633,0.8833271,65975.0,65974.0,0.74158395]
[1727464614831,0.8833271,65975.0,65974.0,0.71063744]
[1727464615099,0.8833271,65975.0,65974.0,0.75558395]
[1727464615987,0.8833271,65975.0,65974.0,0.75358395]
[1727464616431,0.8833271,65975.0,65974.0,0.70863744]
[1727464617559,0.8849811,65975.0,65974.0,0.70863744]
[1727464618255,0.8849811,65975.0,65974.0,0.71063744]
[1727464620306,0.8849811,65975.0,65974.0,0.62963744]
[1727464620788,0.8849811,65975.0,65974.0,0.36943545]
[1727464621518,0.8849811,65975.0,65974.0,0.35543545]
[1727464621738,0.8849811,65975.0,65974.0,0.34143545]
[1727464621963,0.8849811,65975.0,65974.0,0.36943545]
[1727464622195,0.8849811,65975.0,65974.0,0.35543545]
[1727464622699,0.8849811,65975.0,65974.0,0.4826277]
[1727464623802,0.8849811,65975.0,65974.0,0.4686277]
[1727464624027,0.8849811,65975.0,65974.0,0.4966277]
[1727464624466,0.8849811,65975.0,65974.0,0.4826277]
[1727464624669,0.8849811,65975.0,65974.0,0.4966277]
[1727464624888,0.8849811,65975.0,65974.0,0.4826277]
[1727464625114,0.8849811,65975.0,65974.0,0.4966277]
[1727464625352,0.8849811,65975.0,65974.0,0.4826277]
[1727464625576,0.8849811,65975.0,65974.0,0.4966277]
[1727464627219,0.8849811,65975.0,65974.0,0.35543545]
[1727464627934,0.8849811,65975.0,65974.0,0.36943545]
[1727464630101,0.8849811,65975.0,65974.0,0.37108945]
[1727464630583,0.9644811,65975.0,65974.0,0.35708945]
[1727464630831,0.9644811,65975.0,65974.0,0.35408945]
[1727464631072,0.9644811,65975.0,65974.0,0.36608945]